Cogmind - Beta 13 @@@ ROGUE MODE // 2024.05.03 @ 15:54:53 Player: Mylar Result: Destroyed by G-47 Trooper with Particle Gun Performance ------------- Evolutions (3) 1500 Regions Visited (4) 800 Robots Destroyed (124) 620 Value Destroyed (3647) 3647 Prototype IDs (2) 40 Alien Tech Used (0) 0 Bonus (619) 619 TOTAL SCORE: 7226 Bonus ------- High Alert Combat Kills 640 Friendly Fire -21 Cogmind --------- Core Integrity 0/700 Matter 178/300 Energy 310/310 System Corruption 8% Temperature Cool (14) Movement Rolling (155) Ox5 Location -7/Factory Parts ------- > --- POWER (1) -------- Cooled Deuterium Engine > --- PROPULSION (3) --- Wheel > --- UTILITY (5) ------ Medium Storage Unit Melee Analysis Suite Improved Target Analyzer Medium Reactive Plating Long-range Tractor Beam > --- WEAPON (4) ------- Gauss Cannon Heavy Rocket Launcher Katana Katana > --- INVENTORY (10) --- Improved Sensor Array Transmission Jammer Advanced ECM Suite Improved Light Armor Plating Improved Medium Armor Plating Layered Light Armor Plating System Restoration Module System Restoration Module Gatling Laser Axe Peak State ------------ > --- POWER ------------ Cooled Deuterium Engine > --- PROPULSION ------- Armored Wheel Armored Huge Wheel > --- UTILITY ---------- Medium Storage Unit Improved Sensor Array Matter Filter Kinecellerator Hardened Light Armor Plating > --- WEAPON ----------- High-powered Shotgun High-powered Shotgun High-powered Shotgun High-powered Shotgun > --- INVENTORY -------- Cooled Deuterium Engine Wheel Wheel Wheel Cryofiber Web Gauss Rifle Mini Grenade Launcher Katana [Rating: 43] Favorites ----------- Power Cooled Deuterium Engine Engine Cooled Deuterium Engine Power Core Light Nuclear Core Propulsion Wheel Leg Aluminum Leg Wheel Wheel Utility Medium Storage Unit Device Kinecellerator Storage Medium Storage Unit Processor Improved Target Analyzer Protection Light Armor Plating Weapon High-powered Shotgun Energy Gun Particle Gun Ballistic Gun High-powered Shotgun Ballistic Cannon Advanced Assault Cannon Launcher Mini Grenade Launcher Special Weapon Mining Laser Slashing Weapon Katana Build | -11 -10 -9 -8 -7 ------- Run | Yrd Mat Mat Mat Fac Slots Evolved 6 | . . 2 2 2 Power . | . . . . . Propulsion 1 | . . . 1 . Utility 3 | . . 1 1 1 Weapon 2 | . . 1 . 1 Parts Attached 124 | 15 1 13 21 74 Power 10 | 2 . 2 3 3 Engine 9 | 2 . 2 3 2 Core 1 | . . . . 1 Reactor . | . . . . . Propulsion 31 | 2 . 2 5 22 Treads . | . . . . . Leg 3 | . . . . 3 Wheel 28 | 2 . 2 5 19 Hover . | . . . . . Flight . | . . . . . Utility 35 | 5 . 1 6 23 Device 15 | 3 . . 4 8 Storage 3 | 2 . 1 . . Processor 4 | . . . . 4 Hackware . | . . . . . Protection 13 | . . . 2 11 Artifact . | . . . . . Weapon 48 | 6 1 8 7 26 Energy Gun 8 | . . 2 4 2 Energy Cannon . | . . . . . Ballistic Gun 17 | 4 . 3 3 7 Ballistic Cannon 3 | . . . . 3 Launcher 8 | . 1 3 . 4 Special Weapon 2 | 2 . . . . Impact Weapon . | . . . . . Slashing Weapon 10 | . . . . 10 Piercing Weapon . | . . . . . Special Melee Weapon . | . . . . . Unidentified Prototypes 2 | . . . 2 . Parts Lost 49 | 3 1 7 2 36 Power 5 | 1 1 1 . 2 Propulsion 16 | . . 2 1 13 Utility 12 | 1 . 1 . 10 Weapon 16 | 1 . 3 1 11 Highest Loss Streak 10 | 3 1 4 1 10 To Critical Strikes . | . . . . . Average Slot Usage (%) 90 | . 97 69 95 89 Engine 7 | . 11 8 9 6 Wheel 19 | . 28 18 25 16 Device 10 | . 14 1 13 9 Storage 8 | . 14 11 9 7 Processor 6 | . . . . 10 Protection 8 | . . . 11 7 Energy Gun 2 | . . 4 2 2 Ballistic Gun 16 | . 24 22 24 12 Launcher 1 | . 3 3 . 1 Slashing Weapon 6 | . . . . 10 Naked Turns . | . . . . . Heaviest Build 61 | 13 14 23 40 61 Greatest Support 42 | 20 20 20 36 42 Greatest Overweight (x) 7 | . . 2 1 7 Average Overweight (x) . | . . . 1 1 Largest Inventory Capacity 10 | 8 8 10 10 10 Average Capacity 9 | 5 8 9 10 10 Most Carried 10 | 6 4 6 10 10 Average Carried 7 | 4 3 3 9 8 Final Capacity 10 | 8 8 10 10 10 Final Carried 10 | 3 4 6 9 10 Class Distribution -------------------- 32% | Gunner 25% | Mutant 14% | Scavenger-Gladiator 11% | Tank 11% | Scavenger-Gunner 4% | Gladiator Dominant Class ---------------- Mutant | -10/Materials Gunner | -9/Materials Gunner | -8/Materials Gunner | -7/Factory Resources | -11 -10 -9 -8 -7 ----------- Run | Yrd Mat Mat Mat Fac Matter Collected 3189 | 301 15 410 774 1689 Remotely 836 | . . . . 836 Salvage Created 4068 | 115 62 386 893 2612 Parts 247 | 9 5 23 62 148 Haulers Intercepted 5 | . . 1 3 1 Recyclers Shooed 3 | 1 . . . 2 Parts Field Recycled . | . . . . . Retrieved Matter . | . . . . . Parts Self-Destructed . | . . . . . Prevented . | . . . . . Kills | -11 -10 -9 -8 -7 ------- Run | Yrd Mat Mat Mat Fac Combat Hostiles Destroyed 82 | . 3 13 15 51 Melee 14 | . . . . 14 Guns 38 | . . 5 15 18 Cannons 1 | . . . . 1 AOE 29 | . 3 8 . 18 Classes Destroyed 16 | 2 2 4 1 7 Worker 16 | . . . 6 10 Builder 5 | . 1 . . 4 Tunneler 4 | 3 . . 1 . Hauler 5 | . . 1 3 1 Recycler 9 | 1 . . 2 6 Mechanic 1 | . . . . 1 Operator 1 | . . . . 1 Watcher 6 | . . 1 2 3 Swarmer 14 | . . 4 6 4 Grunt 46 | . 3 8 8 27 Brawler 3 | . . . . 3 Duelist 1 | . . . . 1 Protector 1 | . . . . 1 Sentry 9 | . . 1 1 7 Hunter 4 | . . . . 4 Programmer 4 | . . . . 4 Best Kill Streak 13 | 2 4 5 5 13 Combat Bots Only 10 | . 3 5 4 10 Max Kills in Single Turn 3 | 1 2 3 2 3 Gunslinging 1 | . . . 1 . Exploded 3 | . 2 3 . 2 Melee 2 | . . . . 2 Uniques/NPCs Destroyed . | . . . . . Combat | -11 -10 -9 -8 -7 -------- Run | Yrd Mat Mat Mat Fac Hostile Shots Fired 649 | . 7 46 53 543 Missed 222 | . 3 8 16 195 Damage Taken 6005 | 180 159 558 530 4578 Core 860 | . 11 94 44 711 Absorbed by Shields . | . . . . . Ignored by Resistances 34 | . . . . 34 Core Remaining (%) 90 | 100 95 76 92 . Volleys Fired 232 | 45 8 21 50 108 Largest 4 | 2 2 3 3 4 Hottest 200 | 200 40 60 120 183 Shots Fired 510 | 85 10 36 149 230 Gun 379 | 15 5 29 149 181 Cannon 9 | . . . . 9 Launcher 52 | . 5 7 . 40 Special 70 | 70 . . . . Kinetic 377 | 15 5 29 144 184 Thermal 81 | 70 . . 5 6 Explosive 52 | . 5 7 . 40 Electromagnetic . | . . . . . Robot Hit Streak 11 | 2 3 8 5 11 Robot Miss Streak 16 | 2 1 2 9 16 Penetration Max 1 | . . . . 1 Secondary Targets 2 | . . 1 1 . Max Gunslinging Chain 1 | . . 1 1 . Shots Hit Robots 306 | 7 5 23 71 200 Core Hits 231 | 5 5 25 45 151 Critical Kills 2 | . . . 2 . Critical Parts Destroyed . | . . . . . Critical Strikes 10 | . . . 2 8 Destroy 2 | . . . 2 . Blast 1 | . . . . 1 Sever 7 | . . . . 7 Melee Attacks 89 | . . . . 89 Impact . | . . . . . Slashing 89 | . . . . 89 Piercing . | . . . . . Sneak Attacks 22 | . . . . 22 Combat Hostiles . | . . . . . Follow-up Attacks 16 | . . . . 16 Damage Inflicted 11107 | 129 365 802 1353 8458 Guns 3583 | 105 42 238 1319 1879 Cannons 139 | . . . . 139 Explosions 4348 | . 321 564 21 3442 Melee 2998 | . . . . 2998 Ramming 15 | . 2 . 13 . Kinetic 3645 | 105 42 238 1286 1974 Thermal 753 | 24 146 186 54 343 Explosive 3696 | . 175 378 . 3143 Electromagnetic . | . . . . . Impact . | . . . . . Slashing 2998 | . . . . 2998 Piercing . | . . . . . Highest Corruption 9 | 9 9 1 . 8 Average Corruption 5 | 9 9 1 . 5 Corruption Purged . | . . . . . Corruption Blocked . | . . . . . Effects 55 | 5 7 2 . 41 Message Errors 9 | 3 1 . . 5 Matter Fused 17 | . 2 1 . 14 Heat Flow Errors 5 | . . . . 5 Energy Discharges 8 | 1 . . . 7 Parts Rejected 2 | . . . . 2 Data Loss (minor) 5 | . 1 . . 4 Data Loss (major) 5 | . 2 . . 3 Weapon Failures 4 | 1 1 1 . 1 Overload Shots . | . . . . . Overflow Damage 740 | . 90 8 . 642 Projectiles . | . . . . . Explosions 266 | . 90 8 . 168 Melee 474 | . . . . 474 Knockbacks . | . . . . . Impact . | . . . . . Kinetic . | . . . . . Secondary . | . . . . . Self-Inflicted Damage 601 | . 119 143 6 333 Shots 20 | . 3 4 . 13 Rammed 2 | . 1 . 1 . Targets Rammed 2 | . 1 . 1 . Kicked . | . . . . . Crushed . | . . . . . Highest Temperature 266 | 112 1 15 100 266 Average Temperature 48 | 43 1 6 24 78 Received Heat Transfer 1956 | . 24 219 270 1443 Effects 1 | . . . . 1 Interference 1 | . . . . 1 Siege Activations . | . . . . . Robots Corrupted . | . . . . . Combat Hostiles . | . . . . . Parts Fried . | . . . . . Impact Corruptions . | . . . . . Robots Melted . | . . . . . Combat Hostiles . | . . . . . Parts Melted . | . . . . . Heat Transferred 736 | 50 100 150 125 311 Parts Sabotaged . | . . . . . Parts Stolen . | . . . . . Parts Stripped . | . . . . . Power Chain Reactions . | . . . . . Alert | -11 -10 -9 -8 -7 ------- Run | Yrd Mat Mat Mat Fac Peak Influence 962 | 15 238 572 441 962 Initial 241 | . . 100 241 147 Average 315 | 5 77 305 274 476 Maximum Alert Level 3 | . 1 2 2 3 Low Security (%) 33 | 100 81 16 3 20 Level 1 33 | . 18 66 90 16 Level 2 22 | . . 17 6 42 Level 3 9 | . . . . 20 Level 4 . | . . . . . Level 5 . | . . . . . High Security . | . . . . . Max Security . | . . . . . Squads Dispatched 27 | . 2 3 2 20 Investigation 10 | . . 2 2 6 Extermination 2 | . . . . 2 Reinforcement 8 | . 2 1 . 5 Assault 1 | . . . . 1 Garrison 6 | . . . . 6 Intercept . | . . . . . Searches Triggered . | . . . . . Construction Impeded 3 | . . . . 3 Haulers Reinforced 1 | . . . . 1 Active Scanning Responses . | . . . . . Cargo Convoy Interrupts . | . . . . . Stealth | -11 -10 -9 -8 -7 --------- Run | Yrd Mat Mat Mat Fac Distress Signals 5 | . . 2 3 . Communications Jammed . | . . . . . Distress Signals . | . . . . . Times Spotted 120 | . 9 18 24 69 Peak Tracking Total 8 | . 4 5 5 8 Tactical Retreats 6 | . 1 . 1 4 Traps | -11 -10 -9 -8 -7 ------- Run | Yrd Mat Mat Mat Fac Traps Triggered 2 | . . . . 2 Indirectly . | . . . . . Trap Hack Attempts . | . . . . . Triggered . | . . . . . Disarmed . | . . . . . Reprogrammed . | . . . . . Reused . | . . . . . Traps Extracted . | . . . . . Installed . | . . . . . Triggered . | . . . . . Machines | -11 -10 -9 -8 -7 ---------- Run | Yrd Mat Mat Mat Fac Machines Disabled 17 | . 3 6 2 6 Max in Single Turn 3 | . 2 3 2 3 Garrison Access 1 | . . . 1 . Machines Repaired . | . . . . . Machines Dismantled . | . . . . . Machines Sabotaged . | . . . . . Overloaded Fab Kills . | . . . . . Hacking | -11 -10 -9 -8 -7 --------- Run | Yrd Mat Mat Mat Fac Machines Accessed 23 | . 2 3 9 9 Terminals 12 | . 2 3 4 3 Fabricators 2 | . . . . 2 Repair Stations . | . . . . . Recycling Units 3 | . . . 2 1 Scanalyzers 4 | . . . 2 2 Garrison Access 2 | . . . 1 1 Total Hacks 89 | . 6 10 45 28 Successful 63 | . 3 5 36 19 Failed 26 | . 3 5 9 9 Catastrophic 6 | . 1 . 2 3 Database Lockouts . | . . . . . Manual 47 | . 6 10 21 10 Terminals 40 | . 6 10 16 8 Fabricators 5 | . . . . 5 Repair Stations . | . . . . . Recycling Units 14 | . . . 10 4 Scanalyzers 26 | . . . 16 10 Garrison Access 4 | . . . 3 1 Terminal Hacks 9 | . 2 1 4 2 Record 1 | . . . 1 . Open DSF 1 | . . . . 1 Level Access Points 1 | . 1 . . . Emergency Access Points 2 | . 1 . 1 . Terminal Index 2 | . . 1 1 . Unreport Threat 2 | . . . 1 1 Fabricator Hacks 4 | . . . . 4 Load Schematic 2 | . . . . 2 Build 2 | . . . . 2 Repair Station Hacks . | . . . . . Recycling Unit Hacks 3 | . . . 3 . Report Inventory 1 | . . . 1 . Retrieve Matter 1 | . . . 1 . Retrieve Components 1 | . . . 1 . Scanalyzer 25 | . . . 16 9 Insert Component 13 | . . . 8 5 Analyze 12 | . . . 8 4 Garrison Access Hacks 1 | . . . 1 . Seal Access 1 | . . . 1 . Unauthorized Hacks 21 | . 1 4 12 4 Terminals 11 | . 1 4 6 . Assimilate 1 | . . . 1 . Botnet 7 | . . 3 4 . Operators 3 | . 1 1 1 . Fabricators . | . . . . . Repair Stations . | . . . . . Recycling Units 10 | . . . 6 4 Monitor 2 | . . . 1 1 Reject 3 | . . . 2 1 Recyclers 2 | . . . 1 1 Mask 3 | . . . 2 1 Scanalyzers . | . . . . . Garrison Access . | . . . . . Data Cores Recovered . | . . . . . Used . | . . . . . Hacking Detections 19 | . 1 3 7 8 Full Trace Events 11 | . 1 2 2 6 Feedback Events 1 | . . 1 . . Corruption 1 | . . 1 . . Feedback Blocked . | . . . . . Robot Schematics Acquired . | . . . . . Robots Built . | . . . . . Authchips . | . . . . . Time . | . . . . . Total Robot Build Rating . | . . . . . Part Schematics Acquired 10 | . . . 7 3 Parts Built 3 | . . . . 3 Authchips . | . . . . . Time 207 | . . . . 207 Total Part Build Rating 10 | . . . . 10 Parts Repaired . | . . . . . Time . | . . . . . Parts Recycled . | . . . . . Recycled Matter . | . . . . . Retrieved Matter . | . . . . . Retrieved Components 2 | . . . 2 . Parts Scanalyzed 12 | . . . 8 4 Part Schematics Acquired 10 | . . . 7 3 Parts Damaged . | . . . . . Bothacking | -11 -10 -9 -8 -7 ------------ Run | Yrd Mat Mat Mat Fac Used RIF Installer . | . . . . . Robots Hacked . | . . . . . Non-combat . | . . . . . Combat . | . . . . . Robot Hacks Applied . | . . . . . Relay Couplers Released 4 | . . . . 4 Programmers 4 | . . . . 4 Fabnet Peak Effective % . | . . . . . Robots Rewired . | . . . . . Allies Hacked . | . . . . . Hacks Repelled . | . . . . . Allies | -11 -10 -9 -8 -7 -------- Run | Yrd Mat Mat Mat Fac Total Allies 1 | . . . 1 . Largest Group 1 | . . . 1 . Highest-Rated Group 10 | . . . 10 . Highest-Rated Ally 10 | . . . 10 . Total Orders . | . . . . . Ally Attacks . | . . . . . Total Damage . | . . . . . Kills . | . . . . . Allies Corrupted . | . . . . . Allies Melted . | . . . . . Intel | -11 -10 -9 -8 -7 ------- Run | Yrd Mat Mat Mat Fac Robot Analysis Total . | . . . . . Derelict Logs Recovered . | . . . . . Drone Launches . | . . . . . Drone Recoveries . | . . . . . Exploration | -11 -10 -9 -8 -7 ------------- Run | Yrd Mat Mat Mat Fac Turns Passed 4247 | 841 116 187 1040 2063 Spaces Moved 2833 | 561 117 123 716 1316 Core 4 | 3 . . . 1 Treads . | . . . . . Legs 42 | . . . . 42 Wheels 2787 | 558 117 123 716 1273 Hover . | . . . . . Flight . | . . . . . Fastest Speed 50 | 50 80 80 95 80 Average Speed 97 | 79 80 85 98 106 Slowest Speed 400 | 80 80 110 101 400 Overloaded Moves . | . . . . . Propulsion Burnouts . | . . . . . Robots Hopped . | . . . . . Cave-ins Triggered 1 | 1 . . . . Exploration Rate (%) 30 | 29 29 17 51 25 Regions Visited 4 Branch Regions . Pre-discovered Areas . | . . . . . Known Exits Taken 1 | . 1 . . . Unknown Exits Taken 3 | 1 . 1 1 . Scrap Searched . | . . . . . Spaces Dug 29 | 24 5 . . . Terrain Destroyed 531 | 27 42 123 23 316 Melee . | . . . . . Projectile 31 | 27 . . . 4 AOE 500 | . 42 123 23 312 Terrain Rammed . | . . . . . Walls Destroyed . | . . . . . Machines Disabled . | . . . . . Actions | -11 -10 -9 -8 -7 --------- Run | Yrd Mat Mat Mat Fac Total 3662 | 725 127 169 952 1689 Wait 221 | 92 . 6 81 42 Move 2829 | 560 116 122 715 1316 Hop . | . . . . . Pick Up 101 | 7 1 6 39 48 Fast Attach 43 | 10 . 5 9 19 Attach 48 | 4 . 4 4 36 Detach 10 | 2 . . 3 5 Swap 33 | 1 1 4 8 19 Drop 77 | 4 . 1 42 30 Fire 232 | 45 8 21 50 108 Melee 66 | . . . . 66 Ram 2 | . 1 . 1 . Kick . | . . . . . Crush . | . . . . . Escape Stasis . | . . . . . Rewire . | . . . . . Trap . | . . . . . Miscellaneous . | . . . . . Route ------- -11/Scrapyard -10/Materials (discovered 3 exits: *Mat x3) -9/Materials -8/Materials (discovered 2 exits: *Fac / [*Sto]) -7/Factory History --------- Turn | Location | Event 2 | -11/Scrapyard | Met Revision 17 12 | -11/Scrapyard | Discovered new exit (range 16) 743 | -11/Scrapyard | Crushed by falling debris 774 | -11/Scrapyard | Lost 3 parts (1p1u1w) 842 | -11/Scrapyard | Entered Materials 843 | -10/Materials | Build established: Mutant 847 | -10/Materials | Identified exit to Materials 958 | -10/Materials | Entered another Materials area 958 | -9/Materials | Evolved 2 slots: Utility x1, Weapon x1 1111 | -9/Materials | Lost 4 parts (1p1n2w) 1122 | -9/Materials | Discovered new exit (range 13) 1145 | -9/Materials | Entered another Materials area 1145 | -8/Materials | Evolved 2 slots: Propulsion x1, Utility x1 1511 | -8/Materials | Discovered new exit (range 5) 1541 | -8/Materials | Build established: Tank 1901 | -8/Materials | Build established: Gunner 2133 | -8/Materials | Discovered new exit (range 13) 2185 | -8/Materials | Entered Factory 2185 | -7/Factory | Evolved 2 slots: Utility x1, Weapon x1 2975 | -7/Factory | Destroyed 7 combat bots 2982 | -7/Factory | Lost 10 parts (3n3u4w) 3117 | -7/Factory | Lost 5 parts (1p1n2u1w) 3171 | -7/Factory | Destroyed 10 combat bots 3175 | -7/Factory | Lost 3 parts (1n2w) 3416 | -7/Factory | Garrison activated, responded to threat 3456 | -7/Factory | Build established: Scavenger-Gunner 3462 | -7/Factory | Fabricated Katana (x2) 3524 | -7/Factory | Lost 3 parts (2n1w) 3677 | -7/Factory | Core integrity fell below 50% 3778 | -7/Factory | Build established: Scavenger-Gladiator 3853 | -7/Factory | Lost 3 parts (2n1u) 3871 | -7/Factory | Core integrity fell below 20% 3931 | -7/Factory | Fabricated Cld. Deuterium Engine? 4185 | -7/Factory | First assault squad dispatched 4232 | -7/Factory | Destroyed 9 combat bots 4240 | -7/Factory | Lost 4 parts (2n1u1w) 4248 | -7/Factory | Destroyed by G-47 Trooper with Particle Gun Last Messages --------------- 04210_ System corrupted: Energy discharge (-124). 04210_ The unstable cave ceiling collapses. 04211_ H-55 Commando destroyed. 04211_ B-48 Gladiator destroyed. 04214_ Acquired 30 matter. 04214_ Acquired 80 matter. 04214_ Acquired 4 matter. 04215_ The unstable cave ceiling collapses. 04224_ R-06 Scavenger collects Com. Battery. 04225_ The unstable cave ceiling collapses. 04227_ R-06 Scavenger collects Remote Force Field. 04232_ The unstable cave ceiling collapses. 04234_ K-01 Serf cleans the Matter Pump. 04237_ System corrupted: Heat flow error (+287). 04238_ Acquired System Restoration Module. 04244_ Sneak attack on R-06 Scavenger. 04244_ Destroyed Com. Wheel. 04244_ Destroyed Tractor Beam. Map ----- +----------------------------------------------------+ | F" " #?? # ##????????????????????????? | | ""= %#??? # ?????????????????????????? | | % #????# # ##????????????????????????? | | ! #?????# / #????????????????????????? | | ## %###?????# #????????????????????????? | | ?# #???????# # #????????????????????????? | | ?#% #???##??# # #????????????????????????? | | ?# #?### ### # # ###???????????????????????? | | ## ### r #???????????????????????? | | # ## * # ##??????????????????????? | | # ## !] # #??????????????????????? | | %%T% ## """ # # ##??????????????????????? | | #! ## """ # ##???????????????????????? | | # % ## """ ##??????????????????????? | | ### #### # #??????????????????????? | | ??# #??# "" # ##??????????????????????? | | ??#%#### S"" # #???????????????????????? | | ??#!!% + "" ; ####???? #?????????????????? | | ??#### # ";;;;########## #?????????????????? | | ?????# ########### ##### ????????????? | | ?????# gg ^ ???????????? | | ?????############# !! a k ???????????? | | ?????????????????# !! """ ???????????? | | ?????????????????# ! r """ #####?????????????? | | ?????????????????# """ #?????????????????? | | ?????????????????# r@ #?????????????????? | | ?????????????????+ """ #?????????????????? | | ?????????????????# """ #?????????????????? | | ?????????????????# """ """ #?????????????????? | | ?????????????????# "R ????????????????? | | ?????????????????# """ u ??????????????? | | ?????????????????# ??????????????? | | ?????????????????# ? ????????????????? | | ?????????????????# #########???????????????????? | | ?????????????????# ????????????????????????????? | | ????????????????? ????????????????????????????? | | ????????????????? ????????????????????????????? | | ????????????????? ????????????????????????????? | | ?????????????????? ??????????????????????????????? | | ?????????????????????????????????????????????????? | | ?????????????????????????????????????????????????? | | ?????????????????????????????????????????????????? | | ?????????????????????????????????????????????????? | | ?????????????????????????????????????????????????? | | r????????????????????????????????????????????????? | | ?????????????????????????????????????????????????? | | ?????????????????????????????????????????????????? | | ?????????????????????????????????????????????????? | | ?????????????????????????????????????????????????? | | ?r???????????????????????????????????????????????? | +----------------------------------------------------+ Best States ------------- Heat Dissipation 45 Energy Generation 18 Energy Capacity 310 Matter Stores 300 Matter Capacity 300 Sight Range 16 Robot Scan Range 15 Terrain Scan Range 16 Terrain Scan Density 10 Base Temperature (-) 100 Armor Coverage 450 Resistance: KI 30 Evasion (%) 50 Targeting Accuracy 5 Melee Accuracy 5 Target Analysis 6 Matter Filtering 30 Kinecelleration 30 Item Schematics ----------------- Cryofiber Web | -8/Materials | Scanalyzed Kinecellerator | -8/Materials | Scanalyzed Arm. Wheel | -8/Materials | Scanalyzed Katana | -8/Materials | Scanalyzed Imp. Signal Interpreter | -8/Materials | Scanalyzed Cld. Deuterium Engine | -8/Materials | Scanalyzed Hpw. Shotgun | -8/Materials | Scanalyzed Mic. Nuclear Core | -7/Factory | Scanalyzed Med. Reactive Plating | -7/Factory | Scanalyzed Adv. ECM Suite | -7/Factory | Scanalyzed Robot Schematics ------------------ None Fabricated ------------ Katana | x2 | -7/Factory Cld. Deuterium Engine | x1 | -7/Factory Alien Tech Used ----------------- None Achievements -------------- Ambidextrous Just What I Needed Challenges ------------ None Game ------ Seed OmegaReflectiveShifter Manual? 0 Play Time 01:45:34 Cumulative 105.1 hours Start 2024.05.03 @ 13:42:10 End 2024.05.03 @ 15:54:53 Sessions 1 Manual Loads 0 Difficulty Rogue Special Mode None Game No. 22 Rogue 22 Adventurer 0 Explorer 0 Win Type - Total 0 Types 0/0/0/0/0/0/0/0/0 Lore% 18 Gallery% 20 Achievement% 18 Wizard Run 0 Options --------- Layout 1 ASCII 0 Keyboard 0 Movement Mouse Keybinds 0 Fullscreen 1 Font 24/Smallcaps Map View 50x35 Zoom Use 0% Tactical HUD 1 Map Filters NONE Filters NONE Steam 1 RUN: 3dcf65c5-1714-43ab-a661-3d0eecfbf7dd